bitfinex/quotes_ETHUSD_20251021
["timestamp","ask_amount","ask_price","bid_price","bid_amount"]
[1761012182240,1.728,3948.5,3948.3,0.002]
[1761012182713,2.184,3948.5,3948.3,0.002]
[1761012183137,1.728,3948.5,3948.3,0.002]
[1761012184423,10.838696,3948.4,3948.3,0.002]
[1761012184739,6.399112,3948.4,3948.3,0.002]
[1761012184941,3.02781522,3948.4,3948.3,0.002]
[1761012185104,1.728,3948.4,3948.3,0.4737]
[1761012186012,1.728,3948.4,3948.3,0.002]
[1761012186723,1.728,3948.4,3948.3,3.0064356]
[1761012186915,1.728,3948.4,3948.3,0.4737]
[1761012187112,1.728,3948.4,3948.3,3.0064356]
[1761012187317,1.728,3948.4,3948.3,3.57608499]
[1761012187720,1.728,3948.4,3948.3,1.04334939]
[1761012187934,1.728,3948.4,3948.3,3.0064356]
[1761012189117,1.728,3948.4,3948.3,0.002]
[1761012189345,1.728,3948.4,3948.3,3.0064356]
[1761012190345,0.1264,3948.5,3948.4,2.53267146]
[1761012190545,0.1264,3948.8,3948.4,0.82291628]
[1761012190749,0.1264,3948.5,3948.3,0.002]
[1761012191831,0.5824,3948.5,3948.3,0.002]
[1761012192133,7.722087,3948.4,3948.3,0.002]
[1761012192560,8.178087,3948.4,3948.3,0.002]
[1761012192951,8.985087,3948.4,3948.3,0.002]
[1761012193143,7.39506453,3948.4,3948.3,0.002]
[1761012193864,5.37074453,3948.4,3948.3,0.002]
[1761012194035,5.301582,3948.4,3948.3,0.002]
[1761012194454,1.728,3948.4,3948.3,0.002]
[1761012194972,8.228241,3948.4,3948.3,0.002]
[1761012195139,7.410517,3948.4,3948.3,0.002]
[1761012195344,4.273955,3948.4,3948.3,0.002]
[1761012195667,6.680132,3948.4,3948.3,0.002]
[1761012195854,9.70558177,3948.4,3948.3,0.002]
[1761012196065,9.24618177,3948.4,3948.3,0.002]
[1761012196365,5.61404977,3948.4,3948.3,0.002]
[1761012196736,5.124,3948.4,3948.3,0.002]
[1761012196969,3.396,3948.4,3948.3,0.002]
[1761012197191,12.346474,3948.4,3948.3,0.002]
[1761012197483,3.8554,3948.4,3948.3,0.002]
[1761012197673,9.026567,3948.4,3948.3,0.002]
[1761012197858,4.76247097,3948.4,3948.3,0.002]
[1761012198052,3.8554,3948.4,3948.3,0.002]
[1761012198254,3.396,3948.4,3948.3,0.002]
[1761012200267,5.124,3948.4,3948.3,0.002]
[1761012202514,1.728,3948.4,3948.3,0.002]
[1761012203696,18.021277,3948.4,3948.3,0.002]
[1761012203896,19.88307496,3948.4,3948.3,0.002]
[1761012204181,17.54350196,3948.4,3948.3,0.002]
[1761012205588,11.51321396,3948.4,3948.3,0.002]
[1761012205788,10.19321396,3948.4,3948.3,0.002]
[1761012206390,13.58421396,3948.4,3948.3,0.002]
[1761012206752,14.04361396,3948.4,3948.3,0.002]
[1761012207090,16.57628542,3948.4,3948.3,0.002]
[1761012207268,34.79100642,3948.4,3948.3,0.002]
[1761012207668,33.59516942,3948.4,3948.3,0.002]
[1761012207870,27.48471196,3948.4,3948.3,0.002]
[1761012208167,23.78102496,3948.4,3948.3,0.002]
[1761012208388,21.30706996,3948.4,3948.3,0.002]
[1761012208568,23.83974142,3948.4,3948.3,0.002]
[1761012209391,40.25691342,3948.4,3948.3,0.002]
[1761012209990,31.46235642,3948.4,3948.3,0.002]
[1761012210182,13.87888942,3948.4,3948.3,0.002]
[1761012210377,18.04226342,3948.4,3948.3,0.002]
[1761012211290,7.26484196,3948.4,3948.3,0.002]
[1761012211476,5.119,3948.4,3948.3,0.002]
[1761012211884,3.391,3948.4,3948.3,0.002]
[1761012212192,5.119,3948.4,3948.3,0.4569]
[1761012212489,0.001,3948.6,3948.3,0.4569]
[1761012213905,0.001,3948.6,3948.3,0.002]
[1761012214389,2.546969,3948.5,3948.3,0.002]
[1761012214590,3.68309,3948.4,3948.3,0.002]
[1761012215689,3.387,3948.5,3948.3,0.002]
[1761012217093,5.115,3948.5,3948.4,0.4549]
[1761012217288,5.115,3948.5,3948.3,0.002]
[1761012219497,13.191359,3948.4,3948.3,0.002]
[1761012219721,15.72403046,3948.4,3948.3,0.002]
[1761012220502,34.13648146,3948.4,3948.3,0.002]
[1761012220905,27.282919,3948.4,3948.3,0.002]
[1761012221099,7.964435,3948.4,3948.3,0.002]
[1761012221305,11.27382641,3948.4,3948.3,0.002]
[1761012221503,10.58682641,3948.4,3948.3,0.002]
[1761012221690,11.04502641,3948.4,3948.3,0.002]
[1761012222402,5.90571641,3948.4,3948.3,0.002]
[1761012222608,19.24374227,3948.4,3948.3,0.002]
[1761012222796,18.29217427,3948.4,3948.3,0.002]
[1761012223213,13.98932727,3948.4,3948.3,0.002]
[1761012223629,20.99840127,3948.4,3948.3,0.002]
[1761012224505,16.05751927,3948.4,3948.3,0.002]
[1761012225204,14.98423527,3948.4,3948.3,0.002]
[1761012225634,20.06915727,3948.4,3948.3,0.002]
[1761012226234,18.45270227,3948.4,3948.3,0.002]
[1761012226593,19.88526527,3948.4,3948.3,0.002]
[1761012226799,10.11011727,3948.4,3948.3,0.002]
[1761012227001,10.56831727,3948.4,3948.3,0.002]
[1761012227213,24.61285099,3948.4,3948.3,0.002]
[1761012227549,35.80487499,3948.4,3948.3,0.002]
[1761012227734,31.67664199,3948.4,3948.3,0.002]
[1761012228545,44.16792113,3948.4,3948.3,0.002]
[1761012229654,49.95025013,3948.4,3948.3,0.002]
[1761012230956,49.95025013,3948.4,3947.9,0.002]
[1761012231155,49.95025013,3948.4,3947.5,0.002]
[1761012231156,34.26118471,3947.6,3947.5,0.002]
[1761012231448,49.72997743,3947.6,3947.5,0.002]
[1761012231652,52.14391843,3947.6,3947.5,0.002]
[1761012231849,52.94894235,3947.6,3947.5,0.002]
[1761012232049,53.16681291,3947.6,3947.5,0.002]
[1761012232954,53.21097612,3947.6,3947.5,0.002]
[1761012233164,28.0653124,3947.6,3947.5,0.002]
[1761012233364,29.0130704,3947.6,3947.5,0.002]
[1761012233647,38.6595624,3947.6,3947.5,0.002]
[1761012233847,36.9679724,3947.6,3947.5,0.002]
[1761012234056,30.2890914,3947.6,3947.5,0.002]
[1761012234754,38.6595624,3947.6,3947.5,0.002]
[1761012236245,16.2436084,3947.6,3947.5,0.002]
[1761012236449,16.7018084,3947.6,3947.5,0.002]
[1761012236755,33.2619794,3947.6,3947.5,0.002]
[1761012237261,28.8820444,3947.6,3947.5,0.002]
[1761012237826,38.6595624,3947.6,3947.5,0.002]
[1761012238026,38.2013624,3947.6,3947.5,0.002]
[1761012238426,38.6595624,3947.6,3947.5,0.002]
[1761012240250,38.2013624,3947.6,3947.5,0.002]
[1761012240447,8.44060569,3947.6,3947.5,0.002]
[1761012240662,8.09881669,3947.6,3947.5,0.002]
[1761012240833,30.0185244,3947.6,3947.5,0.002]
[1761012241035,27.6568204,3947.6,3947.5,0.002]
[1761012241370,27.17626419,3947.6,3947.5,0.002]
[1761012241581,32.53344142,3947.2,3947.1,1.2]
[1761012241786,51.73180503,3947.2,3947.1,1.2]
[1761012241942,52.20510503,3947.2,3947.1,1.2]
[1761012242387,52.96729918,3947.2,3947.1,1.2]
[1761012243686,33.04051399,3946.9,3946.8,0.003]
[1761012243883,38.37601399,3946.9,3946.8,0.003]
[1761012244072,38.84741399,3946.9,3946.8,0.003]
[1761012244894,39.2449322,3946.9,3946.8,0.003]
[1761012245464,38.48507083,3946.9,3946.8,0.003]
[1761012245666,38.76958531,3946.9,3946.8,0.003]
[1761012245871,10.82755732,3946.9,3946.8,0.003]
[1761012246066,38.76958531,3946.9,3946.8,0.003]
[1761012247302,34.25904631,3946.9,3946.8,0.003]
[1761012247464,29.90556232,3946.9,3946.8,0.003]
[1761012247669,29.42094732,3946.9,3946.8,0.003]
[1761012247870,13.59690132,3946.9,3946.8,0.003]
[1761012248071,15.99215932,3946.9,3946.8,0.003]
[1761012248314,15.59464111,3946.9,3946.8,0.003]
[1761012248996,26.82536211,3946.9,3946.8,0.003]
[1761012249197,23.79934311,3946.9,3946.8,0.003]
[1761012249705,23.84351088,3946.9,3946.8,0.003]
[1761012250007,25.94848288,3946.9,3946.8,0.003]
[1761012250200,25.57708188,3946.9,3946.8,0.003]
[1761012250401,28.11071587,3946.9,3946.8,0.003]
[1761012250707,19.87201425,3946.9,3946.8,0.003]
[1761012250907,0.04416777,3946.9,3946.8,0.4557]
[1761012251073,3.41816777,3946.9,3946.8,0.4557]
[1761012251904,5.14616777,3946.9,3946.8,0.4557]
[1761012252479,0.2315,3945.4,3944.0,0.1503]
[1761012252700,0.2315,3945.4,3943.9,0.6]
[1761012252701,0.50688,3944.2,3943.9,0.6]
[1761012252886,4.00410661,3945.3,3944.1,0.1602]
[1761012252887,2.53487319,3945.0,3944.1,0.1602]
[1761012253086,30.0,3944.8,3944.1,0.6129]
[1761012253373,7.56278085,3944.7,3944.1,0.6129]
[1761012253582,5.101,3944.7,3944.2,0.4527]
[1761012254009,3.373,3944.6,3944.2,0.4527]
[1761012254417,1.728,3944.4,3944.1,0.1602]
[1761012254805,3.373,3944.6,3944.1,0.1602]
[1761012254806,5.402303,3944.2,3944.1,0.1602]
[1761012254998,1.728,3944.2,3944.1,0.1602]
[1761012255402,11.697507,3944.2,3944.1,0.1602]
[1761012255712,9.447303,3944.2,3944.1,0.1602]
[1761012256418,5.101,3944.2,3944.1,0.003]
[1761012256623,5.101,3944.2,3944.1,0.6067]
[1761012256924,1.728,3944.2,3944.1,0.6067]
[1761012257121,1.8544,3944.2,3944.1,0.6067]
[1761012257289,0.1264,3944.2,3944.1,3.77244754]
[1761012257788,1.728,3944.8,3944.1,3.77244754]
[1761012257789,0.1264,3944.5,3944.1,3.77244754]
[1761012258114,0.1264,3944.5,3944.2,0.4465]
[1761012258639,3.372,3944.9,3944.2,0.4465]
[1761012258805,0.1264,3944.2,3944.1,0.1602]
[1761012259006,0.1264,3944.2,3944.1,0.6067]
[1761012259918,0.1264,3944.2,3944.1,0.003]
[1761012260088,3.976332,3944.2,3944.1,0.003]
[1761012261034,14.42748038,3944.2,3944.1,0.003]
[1761012261202,15.98732889,3944.2,3944.1,0.003]
[1761012261401,15.50462789,3944.2,3944.1,0.003]
[1761012261597,3.85151651,3944.2,3944.1,0.003]
[1761012261810,3.85151651,3944.2,3944.1,0.1602]
[1761012261811,1.77219385,3944.2,3944.1,0.1602]
[1761012262192,14.80927323,3944.2,3944.1,0.003]
[1761012262387,3.86665985,3944.2,3944.1,0.003]
[1761012262591,1.77219385,3944.2,3944.1,0.003]
[1761012262886,5.70031585,3944.2,3944.1,0.1602]
[1761012263219,25.91336482,3944.2,3944.1,0.003]
[1761012263413,23.37106382,3944.2,3944.1,0.003]
[1761012264218,5.38759382,3944.2,3944.1,0.003]
[1761012264407,9.33133082,3944.2,3944.1,0.003]
[1761012265525,10.41552082,3944.2,3944.1,0.003]
[1761012266324,12.11130182,3944.2,3944.1,0.003]
[1761012267531,14.18805982,3944.2,3944.1,0.003]
[1761012268529,18.91001882,3944.2,3944.1,0.003]
[1761012268728,15.36289344,3944.2,3944.1,0.003]
[1761012268934,1.77219385,3944.2,3944.1,0.6067]
[1761012269145,5.14219385,3944.2,3944.1,0.1602]
[1761012269346,5.14219385,3944.2,3944.1,0.6067]
[1761012269554,7.21154385,3944.2,3944.1,0.003]
[1761012269998,5.14219385,3944.2,3944.1,0.1602]
[1761012270204,3.37,3944.2,3944.1,0.6067]
[1761012271132,5.098,3944.2,3944.1,0.6067]
[1761012271445,5.098,3944.2,3944.1,0.1602]
[1761012272114,5.098,3944.2,3944.1,0.5953]
[1761012272646,5.098,3944.2,3944.1,0.5973]
[1761012273468,5.098,3944.2,3944.1,0.1622]
[1761012274650,5.86574997,3944.2,3944.1,0.005]
[1761012275067,5.86574997,3944.2,3944.1,0.1622]
[1761012275210,5.098,3944.2,3944.1,0.1622]
[1761012275415,8.649918,3944.2,3944.1,0.1622]
[1761012275947,9.803918,3944.2,3944.1,0.1622]
[1761012276163,5.098,3944.2,3944.1,0.1622]
[1761012276670,5.098,3944.2,3944.1,0.5973]
[1761012277635,5.098,3944.2,3944.1,0.1622]
[1761012277863,5.098,3944.2,3944.1,0.005]
[1761012279369,5.098,3944.2,3944.1,0.1622]
[1761012279562,5.098,3944.2,3944.1,0.5973]
[1761012280073,5.098,3944.2,3944.1,0.005]
[1761012280245,9.11597013,3944.2,3944.1,0.005]
[1761012281155,5.61221913,3944.2,3944.1,0.005]
[1761012281341,5.098,3944.2,3944.1,0.005]
[1761012282169,3.37,3944.2,3944.1,0.005]
[1761012282739,29.209654,3944.2,3944.1,0.005]
[1761012282978,8.095365,3944.2,3944.1,0.005]
[1761012283195,11.66583338,3944.2,3944.1,0.005]
[1761012283479,11.66583338,3944.2,3943.9,0.6]
[1761012283480,3.04237695,3944.0,3943.9,0.6]
[1761012283676,11.15880031,3942.9,3941.8,0.4351]
[1761012283878,15.10510031,3942.9,3941.8,0.4351]
[1761012284079,15.54020031,3942.9,3941.8,0.4351]
[1761012284943,21.69410931,3942.9,3941.8,0.4351]
[1761012285269,22.66933414,3942.9,3941.8,0.4351]
[1761012285864,20.66831014,3942.9,3941.8,0.4351]
[1761012286272,6.06922483,3942.9,3942.0,0.1561]
[1761012286463,10.76933514,3942.9,3942.2,0.4351]
[1761012286859,16.32826414,3942.9,3942.2,0.4351]
[1761012287652,15.66618814,3942.9,3942.2,0.4351]
[1761012287854,5.094,3942.9,3942.0,0.1561]
[1761012288082,1.728,3942.9,3942.8,0.5601]
[1761012288249,1.728,3943.0,3942.8,0.5601]
[1761012288449,1.728,3943.0,3942.9,0.4351]
[1761012288785,1.728,3943.0,3942.8,0.125]
[1761012289394,1.728,3943.0,3942.8,0.5601]
[1761012289751,1.728,3943.0,3942.9,0.4351]
[1761012290457,1.728,3943.0,3942.8,0.125]
[1761012290458,3.365,3943.3,3942.8,0.125]
[1761012290662,1.728,3943.2,3942.9,0.4351]
[1761012291148,1.728,3943.2,3943.1,0.1561]
[1761012291654,0.04420255,3943.5,3943.1,0.5912]
[1761012292192,0.04420255,3943.5,3943.2,0.4351]
[1761012292856,1.728,3943.3,3943.1,0.1561]
[1761012293751,0.04420255,3943.5,3943.1,0.1561]
[1761012293984,1.77220255,3943.5,3943.1,0.1561]
[1761012294753,1.77220255,3943.5,3943.1,0.5912]
[1761012295168,1.77220255,3943.5,3943.2,0.4351]
[1761012296592,0.04420255,3943.5,3943.3,2.97104704]
[1761012296888,1.728,3944.0,3943.3,0.4351]
[1761012297274,0.1264,3943.7,3943.3,0.4351]
[1761012297791,0.1264,3943.7,3943.3,2.97103243]
[1761012298294,0.1264,3943.7,3943.4,0.4351]
[1761012298494,2.12576283,3944.2,3943.1,0.5912]
[1761012298703,0.1264,3943.4,3943.1,0.5912]
[1761012298889,0.1264,3943.4,3943.2,0.4351]
[1761012299692,1.728,3944.2,3943.4,2.53585495]
[1761012299997,0.1264,3943.6,3943.5,0.4351]
[1761012300666,0.1264,3943.6,3943.5,2.97091843]
[1761012300872,0.1264,3943.6,3943.5,0.4351]
[1761012301373,0.04419577,3944.1,3943.5,2.97091843]
[1761012301589,0.04419577,3944.1,3943.7,2.5356349]
[1761012301888,0.04419577,3944.1,3943.5,3.3007014]
[1761012302091,0.04419577,3944.1,3943.7,2.53567277]
[1761012302259,0.04419577,3944.1,3943.8,0.4678]
[1761012302668,0.04419577,3944.1,3943.8,3.00341388]
[1761012302865,0.04419577,3944.1,3943.9,2.53555325]
[1761012303070,0.04419577,3944.1,3943.9,3.00335325]
[1761012303265,0.04419577,3944.1,3944.0,0.4678]
[1761012303468,0.04419577,3944.1,3943.7,0.4678]
[1761012303716,0.04419577,3944.1,3943.1,0.1561]
[1761012303875,0.04419577,3944.1,3943.4,2.53587776]
[1761012304075,0.04419577,3944.1,3944.0,3.04237695]
[1761012304493,0.04419577,3944.1,3944.0,3.51017695]
[1761012306609,0.04419577,3944.1,3944.0,6.87017695]
[1761012306791,0.04419577,3944.1,3944.0,6.36329695]
[1761012307505,0.04419577,3944.1,3943.5,3.36]
[1761012307712,0.4441,3944.6,3943.7,2.53563468]
[1761012307875,1.728,3945.0,3943.6,0.97468]
[1761012307876,0.21721,3944.5,3943.6,0.97468]
[1761012308072,5.510988,3944.7,3943.6,0.4678]
[1761012308308,5.510988,3944.7,3943.7,3.359]
[1761012308526,0.2274,3944.9,3943.7,3.359]
[1761012308808,0.2274,3944.9,3944.0,2.53549045]
[1761012308997,2.103399,3944.8,3944.1,2.53541207]
[1761012309195,1.728,3945.0,3944.4,2.53518658]
[1761012309509,1.728,3945.0,3944.5,2.53516521]
[1761012309709,1.728,3945.0,3944.5,2.53514195]
[1761012309882,1.728,3945.0,3944.8,2.53495894]
[1761012310290,1.728,3945.0,3944.6,3.00286307]
[1761012310613,1.728,3945.0,3944.5,2.53515945]
[1761012310813,1.728,3945.0,3944.3,2.53528424]
[1761012310998,1.728,3945.0,3944.6,2.53511126]
[1761012311192,1.728,3945.0,3944.8,2.53496688]
[1761012311522,0.1264,3944.9,3944.8,2.53496688]
[1761012312227,0.1264,3944.9,3944.7,2.53503845]
[1761012312425,0.17058699,3944.9,3944.7,2.53503845]
[1761012312722,0.17058699,3944.9,3944.5,2.53512064]
[1761012312887,0.4441,3944.8,3944.2,0.1572]
[1761012313089,0.1264,3944.3,3943.7,2.66208597]
[1761012313420,0.1264,3944.3,3943.8,5.89360933]
[1761012313800,0.0441909,3944.2,3943.8,3.358]
[1761012315741,0.0441909,3944.2,3943.7,0.1264]
[1761012315944,0.469,3944.1,3943.0,0.4544]
[1761012316109,0.1264,3943.7,3943.0,2.99047843]
[1761012316307,0.469,3944.1,3942.9,0.1264]
[1761012316505,0.1264,3943.4,3943.0,5.8931264]
[1761012317026,0.1264,3943.4,3943.1,3.1485697]
[1761012317202,0.1264,3943.4,3943.1,0.6125]
[1761012317552,0.1264,3943.4,3943.1,3.14856891]
[1761012318844,0.1264,3943.4,3943.1,2.69416891]
[1761012319275,18.33650817,3943.2,3943.1,0.002]
[1761012319410,34.53178502,3943.2,3943.1,0.002]
[1761012319739,8.26965685,3943.2,3943.1,0.002]
[1761012319923,7.43818636,3943.2,3943.1,0.002]
[1761012320346,8.54328136,3943.2,3943.1,0.002]
[1761012320846,6.00727,3943.2,3943.1,0.002]
[1761012321157,5.379466,3943.2,3943.1,0.002]
[1761012321444,5.348975,3943.2,3943.1,0.002]
[1761012321739,6.4730579,3943.2,3943.1,0.002]
[1761012322242,11.4182439,3943.2,3943.1,0.002]
[1761012322638,13.95425526,3943.2,3943.1,0.002]
[1761012323245,12.7829589,3943.2,3943.1,0.002]
[1761012323552,15.31897026,3943.2,3943.1,0.002]
[1761012323708,12.7829589,3943.2,3943.1,0.002]
[1761012324040,9.9204669,3943.2,3943.1,0.002]
[1761012324239,9.0991659,3943.2,3943.1,0.002]
[1761012324443,9.5681659,3943.2,3943.1,0.002]
[1761012324943,6.3377239,3943.2,3943.1,0.002]
[1761012325238,2.8520829,3943.2,3943.1,0.002]
[1761012325447,7.261352,3943.2,3943.1,0.002]
[1761012325609,7.211352,3943.2,3943.1,0.002]
[1761012325815,9.74736336,3943.2,3943.1,0.002]
[1761012326344,31.63053036,3943.2,3943.1,0.002]
[1761012326715,42.78264917,3943.2,3943.1,0.002]
[1761012327049,45.24443002,3943.2,3943.1,0.002]
[1761012327247,42.70367602,3943.2,3943.1,0.002]
[1761012327556,49.18000302,3943.2,3943.1,0.002]
[1761012328356,49.98863102,3943.2,3943.1,0.002]
[1761012329259,49.98863102,3943.2,3942.8,0.127]
[1761012329260,2.53620431,3942.9,3942.8,0.127]
[1761012329560,38.64249596,3942.9,3942.8,0.127]
[1761012329772,39.11149596,3942.9,3942.8,0.127]
[1761012330113,33.96609246,3942.2,3942.1,2.78409091]
[1761012330311,50.35432446,3942.2,3942.1,2.78409091]
[1761012330537,47.91937246,3942.2,3942.1,2.78409091]
[1761012330747,48.83624531,3942.2,3942.1,2.78409091]
[1761012331057,48.33559031,3942.2,3942.1,2.78409091]
[1761012331352,54.61033231,3942.2,3942.1,2.78409091]
[1761012331514,25.25831,3942.0,3941.0,0.02329885]
[1761012331717,1.728,3941.7,3941.1,0.1572]
[1761012331949,2.303325,3941.5,3941.1,0.1572]
[1761012332149,2.303325,3941.5,3941.0,0.02329885]
[1761012332150,1.728,3941.5,3941.0,0.02329885]
[1761012332465,6.884299,3941.1,3941.0,0.02329885]
[1761012332645,3.354,3941.1,3941.0,0.02329885]
[1761012333235,3.8114,3941.1,3941.0,0.02329885]
[1761012333440,23.66563168,3941.1,3941.0,0.02329885]
[1761012333640,9.00640268,3941.1,3941.0,0.02329885]
[1761012333836,8.54900268,3941.1,3941.0,0.02329885]
[1761012334152,7.741345,3941.1,3941.0,0.02329885]
[1761012334530,10.756378,3941.1,3941.0,0.02329885]
[1761012335034,5.082,3941.1,3941.0,0.02329885]
[1761012335234,7.604694,3941.1,3941.0,0.02329885]
[1761012335435,10.174652,3941.1,3941.0,0.02329885]
[1761012335642,7.682696,3941.1,3941.0,0.02329885]
[1761012335941,5.082,3941.1,3941.0,0.02329885]
[1761012340662,5.082,3941.1,3941.0,0.47039885]
[1761012340868,5.082,3941.1,3941.0,0.02329885]
[1761012343981,22.742356,3941.1,3941.0,0.02329885]
[1761012344168,14.9108184,3941.1,3941.0,0.02329885]
[1761012344369,12.4695294,3941.1,3941.0,0.02329885]
[1761012344774,12.0121294,3941.1,3941.0,0.02329885]
[1761012345107,28.3586554,3941.1,3941.0,0.02329885]
[1761012345276,9.5908254,3941.1,3941.0,0.02329885]
[1761012345472,7.769567,3941.1,3941.0,0.02329885]
[1761012345788,10.30692966,3941.1,3941.0,0.02329885]
[1761012345996,8.07476266,3941.1,3941.0,0.02329885]
[1761012346184,22.80310266,3941.1,3941.0,0.02329885]
[1761012346791,7.94359,3941.1,3941.0,0.02329885]
[1761012346973,17.27669766,3941.1,3941.0,0.02329885]
[1761012347560,12.010279,3941.1,3941.0,0.02329885]
[1761012347764,5.918589,3941.1,3941.0,0.02329885]
[1761012347961,0.2258,3941.9,3941.0,0.47039885]
[1761012348217,6.397527,3941.7,3941.1,0.1572]
[1761012348502,6.397527,3941.7,3941.0,0.02529885]
[1761012348503,12.253188,3941.6,3941.0,0.02529885]
[1761012348698,13.08591928,3941.4,3941.0,0.02529885]
[1761012349003,9.15051266,3941.1,3941.0,0.02529885]
[1761012349187,14.22951266,3941.1,3941.0,0.02529885]
[1761012349497,14.68691266,3941.1,3941.0,0.02529885]
[1761012349892,13.95280766,3941.1,3941.0,0.02529885]
[1761012350086,16.05921221,3941.1,3941.0,0.02529885]
[1761012350503,16.10344385,3941.1,3941.0,0.02529885]
[1761012350805,6.77223619,3941.1,3941.0,0.02529885]
[1761012351012,9.01924564,3941.1,3941.0,0.02529885]
[1761012351502,9.47664564,3941.1,3941.0,0.02529885]
[1761012351803,14.8515673,3941.1,3941.0,0.02529885]
[1761012352102,13.5536043,3941.1,3941.0,0.02529885]
[1761012352495,12.2239423,3941.1,3941.0,0.02529885]
[1761012352817,8.89197671,3941.1,3941.0,0.02529885]
[1761012353103,11.88673937,3941.1,3941.0,0.02529885]
[1761012353910,21.21105637,3941.1,3941.0,0.02529885]
[1761012354279,15.12931137,3941.1,3941.0,0.02529885]
[1761012354765,9.63392237,3941.1,3941.0,0.02529885]
[1761012354969,24.50969237,3941.1,3941.0,0.02529885]
[1761012355188,23.57552537,3941.1,3941.0,0.02529885]
[1761012355799,30.57494637,3941.1,3941.0,0.02529885]
[1761012355999,24.98740037,3941.1,3941.0,0.02529885]
[1761012357022,40.03679073,3941.1,3941.0,0.02529885]
[1761012357896,10.03679073,3941.1,3941.0,0.02529885]
[1761012358102,40.03679073,3941.1,3941.0,0.02529885]
[1761012359926,28.25826473,3941.1,3941.0,0.02529885]
[1761012360125,31.83923422,3941.1,3941.0,0.02529885]
[1761012360430,24.48862322,3941.1,3941.0,0.02529885]
[1761012360722,22.09848322,3941.1,3941.0,0.02529885]
[1761012361227,20.45398622,3941.1,3941.0,0.02529885]
[1761012361925,20.8520822,3941.1,3941.0,0.02529885]
[1761012362138,40.4771262,3941.1,3941.0,0.02529885]
[1761012366251,31.76521376,3939.6,3939.5,3.125]
[1761012366407,4.684038,3939.6,3939.5,3.125]
[1761012366726,7.143831,3939.6,3939.5,3.125]
[1761012367053,21.69659776,3939.6,3939.5,3.125]
[1761012367262,7.326037,3939.6,3939.5,3.125]
[1761012367417,5.076,3939.6,3939.5,3.125]
[1761012368744,5.076,3939.6,3939.5,3.127]
[1761012370355,5.076,3939.6,3939.5,3.5719]
[1761012371484,5.12024479,3939.6,3939.5,3.127]
[1761012372340,0.04424479,3939.6,3939.5,3.8846]
[1761012372583,3.461757,3940.7,3939.5,6.44832524]
[1761012372783,11.37683,3940.3,3939.6,0.4449]
[1761012372984,5.075,3940.2,3939.6,0.4449]
[1761012373570,5.075,3940.2,3940.1,0.1561]
[1761012373571,7.359304,3940.2,3940.1,0.1561]
[1761012374146,5.075,3940.2,3940.1,0.601]
[1761012374547,9.281577,3940.2,3940.1,0.1561]
[1761012374761,9.281577,3940.2,3939.5,3.127]
[1761012374762,6.00758181,3940.2,3939.5,3.127]
[1761012374986,3.490598,3939.9,3939.5,3.127]
[1761012375162,1.728,3939.7,3939.5,3.127]
[1761012375889,2.48921169,3939.7,3939.5,3.127]
[1761012376093,1.728,3939.7,3939.5,3.127]
[1761012376855,1.728,3939.7,3939.6,0.4693]
[1761012377542,1.7722411,3940.4,3939.6,0.4693]
[1761012377770,0.1264,3939.6,3939.5,3.5963]
[1761012378170,0.1264,3939.6,3939.5,3.127]
[1761012378171,1.8544,3939.6,3939.5,3.127]
[1761012378713,1.8544,3939.6,3939.5,3.5963]
[1761012380199,0.1264,3939.6,3939.5,3.5963]
[1761012381172,0.1264,3939.6,3939.5,6.13469319]
[1761012381573,0.04424339,3940.1,3939.5,7.00201422]
[1761012381809,0.1264,3939.9,3939.6,3.00756671]
[1761012382011,0.1264,3939.9,3939.6,0.4693]
[1761012382208,0.1264,3939.9,3939.5,3.127]
[1761012382388,0.1264,3939.9,3939.5,3.5963]
[1761012382584,0.1264,3939.9,3939.6,0.4693]
[1761012384215,0.1264,3939.9,3939.5,3.127]
[1761012384381,0.1264,3939.9,3939.5,3.5963]
[1761012384920,0.1264,3939.6,3939.5,3.127]
[1761012385329,0.1264,3939.6,3939.5,3.5963]
[1761012386117,1.77224339,3940.1,3939.6,2.53827128]
[1761012386413,1.77224339,3940.1,3939.6,0.4693]
[1761012386414,0.1264,3940.0,3939.6,0.4693]
[1761012386614,0.1264,3940.0,3939.7,0.4693]
[1761012386815,0.1264,3940.2,3940.0,2.53805632]
[1761012387139,3.344,3940.9,3940.2,2.53788144]
[1761012387341,0.1264,3940.5,3940.3,0.1561]
[1761012387805,0.1264,3940.5,3940.4,0.4693]
[1761012389014,2.191739,3940.3,3939.5,3.5963]
[1761012389220,2.191739,3940.3,3939.6,0.4693]
[1761012389221,1.728,3940.3,3939.6,0.4693]
[1761012389420,1.728,3940.3,3939.7,0.61346371]
[1761012390038,1.728,3940.3,3939.5,3.127]
[1761012390039,1.77223692,3940.3,3940.2,0.1561]
[1761012390434,1.77223692,3940.3,3939.5,3.127]
[1761012390435,4.608613,3940.2,3939.5,3.127]
[1761012390819,4.039413,3940.2,3939.5,3.127]
[1761012391535,1.77223692,3940.3,3939.5,3.127]
[1761012391839,0.95142369,3940.2,3939.5,3.127]
[1761012392244,3.314441,3940.1,3939.5,3.127]
[1761012392549,1.77223692,3940.3,3939.6,0.02538328]
[1761012392756,3.38723692,3940.3,3940.1,0.1561]
[1761012393252,3.38723692,3940.3,3940.2,0.4361]
[1761012393465,3.131859,3940.7,3940.1,0.1561]
[1761012393665,3.131859,3940.7,3939.7,3.343]
[1761012393666,2.097603,3940.6,3939.7,3.343]
[1761012393834,2.097603,3940.6,3939.7,5.88123225]
[1761012394234,2.097603,3940.6,3939.7,6.31733225]